bitfinex/quotes_SOLUSD_20241214
["timestamp","ask_amount","ask_price","bid_price","bid_amount"]
[1734203166298,20.0,217.73,217.58,13.90842987]
[1734203166580,20.0,217.69,217.57,43.90842987]
[1734203166782,20.0,217.69,217.57,13.90842987]
[1734203167299,20.0,217.69,217.58,0.12549]
[1734203168168,20.0,217.65,217.55,13.90842987]
[1734203168772,20.0,217.65,217.56,14.03391987]
[1734203168967,20.0,217.65,217.57,13.90842987]
[1734203169168,20.0,217.65,217.56,14.03391987]
[1734203169391,6.6952,217.68,217.58,0.12549]
[1734203169697,6.6952,217.68,217.59,14.03391987]
[1734203169858,6.6952,217.68,217.58,13.90842987]
[1734203170194,6.6952,217.68,217.57,13.90842987]
[1734203170444,6.6952,217.68,217.58,0.12549]
[1734203171097,20.0,217.65,217.54,13.90842987]
[1734203171965,20.0,217.65,217.53,30.0]
[1734203172156,20.0,217.65,217.51,13.90842987]
[1734203172460,20.0,217.65,217.52,14.03391987]
[1734203173062,20.0,217.65,217.53,13.90842987]
[1734203173261,20.0,217.65,217.54,0.12549]
[1734203174066,20.0,217.65,217.5,13.90842987]
[1734203174963,20.0,217.65,217.5,0.12549]
[1734203175897,6.6952,217.64,217.47,13.90842987]
[1734203176195,20.0,217.6,217.48,0.12549]
[1734203176598,20.0,217.6,217.47,14.03391987]
[1734203177461,20.0,217.6,217.46,13.90842987]
[1734203177662,6.6952,217.59,217.45,13.90842987]
[1734203177896,20.0,217.56,217.44,13.90842987]
[1734203178136,20.0,217.56,217.45,13.90842987]
[1734203178913,20.0,217.56,217.45,0.12549]
[1734203182925,20.0,217.56,217.47,14.03391987]
[1734203183142,20.0,217.56,217.47,9.05112258]
[1734203183533,20.0,217.56,217.47,0.12549]
[1734203184128,20.0,217.56,217.48,0.12549]
[1734203184936,20.0,217.56,217.47,0.12549]
[1734203185246,20.0,217.56,217.47,9.05112258]
[1734203191573,6.4187,217.64,217.53,8.92563258]
[1734203191874,6.4187,217.64,217.48,0.68954463]
[1734203191875,18.381643,217.62,217.55,8.92563258]
[1734203192083,6.4187,217.64,217.55,8.92563258]
[1734203192242,24.797905,217.64,217.56,0.12549]
[1734203192444,6.4187,217.64,217.56,0.12549]
[1734203192640,7.0798,217.72,217.61,8.92563258]
[1734203192847,8.925633,217.69,217.63,8.92563258]
[1734203193149,7.0798,217.72,217.65,14.04807208]
[1734203193336,7.0798,217.72,217.65,0.12549]
[1734203193543,7.0798,217.72,217.64,0.12549]
[1734203196639,1.80591564,217.82,217.63,13.92258208]
[1734203196640,6.4187,217.77,217.67,14.04807208]
[1734203197558,6.4187,217.77,217.64,13.92258208]
[1734203197751,6.4187,217.77,217.6,134.7]
[1734203197752,16.4187,217.77,217.65,14.04807208]
[1734203197974,16.4187,217.77,217.66,0.12549]
[1734203199866,7.11256185,217.94,217.66,0.12549]
[1734203199867,6.3444,217.82,217.7,14.04807208]
[1734203200072,6.3444,217.82,217.72,14.04807208]
[1734203200073,14.048072,217.81,217.72,14.04807208]
[1734203200362,14.048072,217.81,217.71,23.902374]
[1734203200363,6.3444,217.82,217.74,0.12549]
[1734203201255,6.3444,217.82,217.72,0.25098]
[1734203201965,6.3444,217.82,217.72,14.17356208]
[1734203202167,6.3444,217.82,217.72,0.25098]
[1734203202667,6.3444,217.82,217.74,0.25098]
[1734203203865,6.3444,217.82,217.75,0.12549]
[1734203204963,6.3444,217.82,217.7,15.46398208]
[1734203205270,6.3444,217.82,217.7,0.12549]
[1734203206055,6.3444,217.82,217.71,0.12549]
[1734203206776,6.3444,217.82,217.7,0.12549]
[1734203206944,6.3444,217.82,217.66,13.92258208]
[1734203206945,20.0,217.79,217.66,13.92258208]
[1734203207150,20.0,217.79,217.67,30.0]
[1734203207559,20.0,217.79,217.68,0.12549]
[1734203208090,20.0,217.79,217.68,14.04807208]
[1734203210056,6.3444,217.82,217.73,13.92258208]
[1734203210654,6.3444,217.82,217.72,14.04807208]
[1734203210866,6.3444,217.82,217.72,0.12549]
[1734203211878,6.3444,217.82,217.73,0.12549]
[1734203212253,6.3444,217.82,217.75,0.12549]
[1734203212574,6.3444,217.88,217.77,0.12549]
[1734203212771,7.0055,217.88,217.77,0.12549]
[1734203213153,18.360286,217.87,217.76,0.25098]
[1734203214162,18.360286,217.87,217.76,14.17356208]
[1734203214651,18.360286,217.87,217.76,0.25098]
[1734203214956,18.360286,217.87,217.74,0.12549]
[1734203216790,18.360286,217.87,217.74,0.25098]
[1734203217273,18.360286,217.87,217.74,0.12549]
[1734203217669,20.0,217.84,217.74,0.12549]
[1734203218782,20.0,217.84,217.69,134.7]
[1734203219479,20.0,217.8,217.66,13.92258208]
[1734203219678,20.0,217.8,217.7,13.92258208]
[1734203219886,20.0,217.8,217.73,0.12549]
[1734203220357,20.0,217.8,217.71,0.12549]
[1734203220682,20.0,217.8,217.71,24.027864]
[1734203220856,20.0,217.8,217.72,13.92258208]
[1734203221058,7.0559,217.83,217.74,14.04807208]
[1734203221374,7.0559,217.83,217.76,0.12549]
[1734203222265,7.0559,217.83,217.74,13.92258208]
[1734203222266,18.360286,217.87,217.77,14.04807208]
[1734203222455,7.0559,217.88,217.78,0.12549]
[1734203222654,25.415274,217.88,217.78,0.12549]
[1734203223379,25.415274,217.88,217.76,0.12549]
[1734203224180,25.415274,217.88,217.77,0.12549]
[1734203224566,25.415274,217.88,217.78,0.12549]
[1734203225461,25.415274,217.88,217.76,0.25098]
[1734203226561,25.415274,217.88,217.76,14.17356208]
[1734203226763,25.415274,217.88,217.78,0.12549]
[1734203228394,25.415274,217.88,217.76,0.25098]
[1734203229595,25.415274,217.88,217.76,14.17356208]
[1734203230096,0.6611,217.88,217.81,13.92258208]
[1734203230289,18.356266,217.92,217.83,14.04807208]
[1734203230584,6.3948,217.93,217.83,0.12549]
[1734203230760,24.750109,217.93,217.83,0.12549]
[1734203230960,24.750109,217.93,217.81,37.95044608]
[1734203231377,24.750109,217.93,217.83,0.12549]
[1734203231970,6.3948,217.93,217.83,0.12549]
[1734203232381,6.3948,217.93,217.82,0.12549]
[1734203233779,6.3948,217.93,217.81,0.12549]
[1734203233982,20.0,217.9,217.76,13.92258208]
[1734203235179,20.0,217.9,217.77,0.25098]
[1734203235573,20.0,217.9,217.75,37.82495608]
[1734203235781,20.0,217.9,217.75,23.902374]
[1734203236088,20.0,217.9,217.75,14.04807208]
[1734203236474,20.0,217.9,217.78,0.12549]
[1734203236788,20.0,217.9,217.79,0.12549]
[1734203237269,20.0,217.9,217.77,0.25098]
[1734203238577,20.0,217.9,217.78,0.12549]
[1734203239196,20.0,217.9,217.77,0.12549]
[1734203239774,0.6611,217.89,217.75,0.12549]
[1734203239979,20.0,217.84,217.7,13.92258208]
[1734203240210,20.0,217.84,217.69,15.52088208]
[1734203240506,20.0,217.84,217.7,14.04807208]
[1734203240879,20.0,217.84,217.72,0.12549]
[1734203241075,20.0,217.84,217.71,0.12549]
[1734203241594,20.0,217.84,217.7,13.92258208]
[1734203241795,20.0,217.84,217.72,13.92258208]
[1734203241996,20.0,217.84,217.73,0.12549]
[1734203242181,20.0,217.84,217.75,0.12549]
[1734203242380,6.5148,217.87,217.76,14.04807208]
[1734203243299,6.5148,217.87,217.76,0.12549]
[1734203243881,6.5148,217.87,217.69,15.52088208]
[1734203243882,20.0,217.84,217.69,15.52088208]
[1734203244184,20.0,217.84,217.71,0.12549]
[1734203244599,20.0,217.84,217.71,14.04807208]
[1734203244788,20.0,217.84,217.73,0.12549]
[1734203245409,20.0,217.84,217.73,13.92258208]
[1734203245610,20.0,217.84,217.74,0.12549]
[1734203246286,20.0,217.84,217.72,0.12549]
[1734203246689,20.0,217.84,217.72,14.04807208]
[1734203247275,20.0,217.84,217.75,14.04807208]
[1734203247478,6.5148,217.87,217.77,0.12549]
[1734203247701,6.5148,217.87,217.77,14.04807208]
[1734203248006,6.5148,217.87,217.73,0.12549]
[1734203248007,6.5148,217.87,217.79,0.12549]
[1734203248914,6.5148,217.87,217.8,0.12549]
[1734203249394,6.5148,217.87,217.79,14.04807208]
[1734203249574,0.6611,217.89,217.79,14.04807208]
[1734203249780,0.6611,217.89,217.81,0.25098]
[1734203249980,6.2687,217.92,217.83,0.12549]
[1734203253507,6.2687,217.92,217.85,0.12549]
[1734203253711,0.6611,217.94,217.85,14.17356208]
[1734203253888,6.2923,217.97,217.87,14.04807208]
[1734203254091,6.2923,217.97,217.89,0.12549]
[1734203254817,6.2923,217.97,217.87,37.82495608]
[1734203254994,6.2923,217.97,217.88,0.12549]
[1734203255192,6.2923,217.97,217.87,0.12549]
[1734203256620,6.2923,217.97,217.89,0.12549]
[1734203257313,6.2923,217.97,217.88,0.12549]
[1734203257505,6.2923,217.97,217.87,14.04807208]
[1734203258415,6.2923,217.97,217.85,13.92258208]
[1734203258592,6.2923,217.97,217.86,30.0]
[1734203258788,6.2923,217.97,217.87,0.12549]
[1734203259591,20.0,217.94,217.81,13.92258208]
[1734203259825,6.2582,217.89,217.76,13.92258208]
[1734203259991,6.2582,217.89,217.75,13.92258208]
[1734203260695,6.2582,217.89,217.76,30.12549]
[1734203260895,6.2582,217.89,217.76,0.12549]
[1734203261113,6.2582,217.89,217.75,13.92258208]
[1734203261295,6.2582,217.89,217.77,0.12549]
[1734203261491,6.2582,217.89,217.75,13.92258208]
[1734203262214,6.2582,217.89,217.76,14.04807208]
[1734203262398,6.2582,217.89,217.76,0.12549]
[1734203265523,6.2582,217.89,217.77,0.12549]
[1734203266701,6.2582,217.89,217.83,14.04807208]
[1734203266902,6.2582,217.89,217.83,13.92258208]
[1734203267607,6.2582,217.89,217.83,0.12549]
[1734203268217,6.2582,217.89,217.83,13.92258208]
[1734203268726,6.2582,217.89,217.83,0.12549]
[1734203270000,0.6611,217.93,217.84,14.04807208]
[1734203271906,0.6611,217.93,217.85,13.92258208]
[1734203272835,0.6611,217.93,217.83,13.92258208]
[1734203273138,6.2582,217.94,217.84,13.92258208]
[1734203275005,6.2582,217.94,217.83,13.92258208]
[1734203276513,6.2582,217.94,217.84,50.0]
[1734203276841,6.2582,217.94,217.85,13.92258208]
[1734203277046,1.2053173,217.99,217.88,13.92258208]
[1734203277838,1.2053173,217.99,217.89,14.04807208]
[1734203278059,1.2053173,217.99,217.87,13.92258208]
[1734203278241,1.2053173,217.99,217.85,13.92258208]
[1734203278417,20.0,217.97,217.84,63.92258208]
[1734203278817,20.0,217.97,217.84,50.0]
[1734203280127,20.0,217.97,217.84,63.92258208]
[1734203280946,1.2053173,217.99,217.87,13.92258208]
[1734203281152,1.2053173,217.99,217.86,14.04807208]
[1734203282243,20.0,217.97,217.86,0.12549]
[1734203283150,20.0,217.97,217.84,50.0]
[1734203283325,23.902374,217.96,217.84,50.0]
[1734203283521,20.0,217.93,217.84,50.0]
[1734203284129,6.0644,217.92,217.84,50.0]
[1734203284329,0.6611,217.91,217.84,50.0]
[1734203288430,20.0,217.89,217.84,50.0]
[1734203291560,6.7255,217.97,217.85,14.03221446]
[1734203291851,6.7255,217.97,217.86,13.90672446]
[1734203293337,6.7255,217.97,217.87,13.90672446]
[1734203297457,6.7255,217.97,217.84,63.90672446]
[1734203297631,6.7255,217.97,217.84,50.0]
[1734203298546,20.0,217.94,217.84,50.0]
[1734203300738,20.0,217.94,217.85,14.03221446]
[1734203301153,6.7255,217.97,217.87,13.90672446]
[1734203301365,6.7255,217.97,217.88,13.90672446]
[1734203301956,6.7255,217.97,217.89,0.12549]
[1734203302344,6.7255,217.97,217.87,13.90672446]
[1734203303240,6.7255,217.97,217.84,63.90672446]
[1734203303443,6.7255,217.97,217.84,50.0]
[1734203303641,6.7255,217.97,217.85,0.12549]
[1734203305061,6.7255,217.97,217.84,50.0]
[1734203305062,20.0,217.94,217.84,50.0]
[1734203312366,20.0,217.94,217.86,8.89569575]
[1734203312579,6.7255,217.97,217.86,8.89569575]
[1734203312870,6.7255,217.97,217.88,8.89569575]
[1734203313448,6.7255,217.97,217.89,8.89569575]
[1734203313647,6.0644,217.97,217.89,8.89569575]
[1734203314078,6.0644,217.97,217.88,0.68820279]
[1734203314286,6.0644,217.97,217.88,9.58389854]
[1734203316849,6.0644,217.97,217.87,8.89569575]
[1734203317060,6.0644,217.97,217.84,58.89569575]
[1734203317242,6.0644,217.97,217.84,50.0]
[1734203318084,6.0644,217.97,217.85,0.12549]
[1734203318645,20.0,217.94,217.84,50.0]
[1734203320577,0.6611,217.93,217.84,50.0]
[1734203322674,20.6611,217.93,217.84,50.0]
[1734203325379,20.0,217.92,217.84,50.0]
[1734203326571,20.0,217.89,217.84,50.0]
[1734203327584,30.379184,217.92,217.84,50.0]
[1734203327585,6.6023,217.92,217.84,50.0]
[1734203328193,6.6023,217.97,217.85,9.58411991]
[1734203328364,6.6023,217.97,217.86,8.89569575]
[1734203329656,20.0,217.94,217.87,8.89569575]
[1734203330481,0.5442173,217.99,217.92,8.89569575]
[1734203330665,0.5442173,217.99,217.89,9.02118575]
[1734203330863,0.5442173,217.99,217.88,30.68828042]
[1734203330864,0.5442173,217.99,217.88,30.0]
[1734203331769,20.5442173,217.99,217.88,30.0]
[1734203332556,20.5442173,217.99,217.87,8.89569575]
[1734203334184,20.5442173,217.99,217.88,8.89569575]
[1734203334680,20.5442173,217.99,217.86,0.12549]
[1734203334881,20.5442173,217.99,217.87,8.89569575]
[1734203335083,20.5442173,217.99,217.88,8.89569575]
[1734203335603,20.5442173,217.99,217.91,8.89569575]
[1734203335762,20.5442173,217.99,217.88,8.89569575]
[1734203336485,23.776884,217.98,217.86,0.12549]
[1734203336660,20.0,217.95,217.86,30.0]
[1734203337081,20.0,217.95,217.87,8.89569575]
[1734203339966,20.0,217.95,217.86,8.89569575]
[1734203341984,20.0,217.95,217.84,50.0]
[1734203342182,20.0,217.91,217.84,50.0]
[1734203349202,7.1346,217.94,217.85,8.89569575]
[1734203349409,7.1346,217.94,217.84,58.89569575]
[1734203350487,7.1346,217.94,217.84,50.0]
[1734203352791,7.1346,217.94,217.85,8.89569575]
[1734203353089,7.1346,217.94,217.84,58.89569575]
[1734203354282,7.1346,217.94,217.84,50.0]
[1734203355873,7.1346,217.94,217.84,58.89569575]
[1734203356279,7.1346,217.94,217.85,8.89569575]
[1734203356575,7.1346,217.94,217.84,58.89569575]
[1734203358607,7.1346,217.94,217.84,50.0]
[1734203360796,7.1346,217.94,217.84,58.89569575]
[1734203361010,20.0,217.91,217.84,50.0]
[1734203361220,20.0,217.9,217.84,50.0]
[1734203362911,30.879384,217.85,217.84,23.75283494]
[1734203363094,30.879384,217.85,217.84,9.36873494]
[1734203364905,7.1025,217.85,217.84,9.36873494]
[1734203365824,30.879384,217.85,217.84,9.36873494]
[1734203371104,31.130364,217.85,217.84,9.36873494]
[1734203371905,31.130364,217.85,217.7,1.66]
[1734203371906,20.0,217.82,217.7,1.66]
[1734203372100,20.0,217.81,217.7,10.55569575]
[1734203372622,20.0,217.82,217.7,10.55569575]
[1734203372836,20.0,217.78,217.7,1.66]
[1734203373327,23.776884,217.81,217.65,1.5695]
[1734203373328,20.0,217.74,217.65,1.5695]
[1734203373525,20.0,217.74,217.66,30.0]
[1734203374036,20.0,217.74,217.65,10.46519575]
[1734203374800,23.776884,217.81,217.65,1.5695]
[1734203375131,20.0,217.74,217.65,1.5695]
[1734203375342,20.0,217.74,217.65,10.46519575]
[1734203375932,38.37031,217.74,217.65,1.5695]
[1734203376808,38.37031,217.74,217.65,10.46519575]
[1734203377125,38.37031,217.74,217.65,1.5695]
[1734203379639,38.37031,217.74,217.66,8.89569575]
[1734203379806,22.92244104,217.8,217.67,8.89569575]
[1734203380002,23.776884,217.79,217.67,8.89569575]
[1734203380328,8.895696,217.75,217.67,8.89569575]
[1734203381213,8.895696,217.75,217.66,0.12549]
[1734203381414,8.895696,217.75,217.65,1.5695]
[1734203381938,44.027864,217.79,217.65,1.5695]
[1734203382226,20.0,217.73,217.65,1.5695]
[1734203382709,20.0,217.76,217.65,1.5695]
[1734203382916,23.776884,217.75,217.65,1.5695]
[1734203383213,20.0,217.72,217.65,1.5695]
[1734203385446,20.0,217.72,217.61,8.89569575]
[1734203385947,20.0,217.72,217.62,8.89569575]
[1734203386548,18.37342,217.71,217.62,8.89569575]
[1734203387329,20.0,217.72,217.63,8.89569575]
[1734203388711,20.0,217.78,217.67,8.89569575]
[1734203388912,8.895696,217.77,217.68,8.89569575]
[1734203389136,20.0,217.74,217.68,8.89569575]
[1734203389315,20.0,217.74,217.65,0.12549]
[1734203389507,20.0,217.74,217.64,15.33689575]
[1734203392224,20.0,217.74,217.64,6.4412]
[1734203392425,20.0,217.74,217.6,0.68910217]
[1734203392648,23.776884,217.73,217.61,8.89569575]
[1734203395449,25.57743784,217.73,217.61,8.89569575]
[1734203395644,20.0,217.68,217.59,1.5858]
[1734203396037,20.0,217.68,217.56,6.4412]
[1734203396430,20.0,217.65,217.56,6.4412]
[1734203396631,23.776884,217.68,217.56,6.4412]
[1734203397052,20.0,217.65,217.56,6.4412]
[1734203397428,4.18388536,217.75,217.63,8.89569575]
[1734203397628,8.895696,217.73,217.64,8.89569575]
[1734203397951,8.895696,217.73,217.62,8.89569575]
[1734203398848,20.0,217.7,217.63,8.89569575]
[1734203399631,20.0,217.7,217.59,0.81459621]
[1734203399839,20.0,217.7,217.6,8.89569575]
[1734203400044,20.0,217.7,217.57,30.12549]
[1734203400246,20.0,217.7,217.58,8.89569575]
[1734203400772,20.0,217.7,217.57,30.12549]
[1734203400773,20.0,217.7,217.59,8.89569575]
[1734203401449,20.0,217.7,217.61,8.89569575]
[1734203401856,20.0,217.7,217.57,0.94018287]
[1734203402157,20.0,217.7,217.6,8.89569575]
[1734203402775,20.0,217.7,217.61,8.89569575]
[1734203402932,20.0,217.7,217.63,8.89569575]
[1734203403371,6.4525,217.77,217.65,8.89569575]
[1734203403372,20.0,217.74,217.65,8.89569575]
[1734203403654,18.371959,217.75,217.65,8.89569575]
[1734203404855,20.0,217.72,217.65,8.89569575]
[1734203405072,20.0,217.72,217.64,8.89569575]
[1734203406038,20.0,217.72,217.63,10.50759575]
[1734203406355,20.0,217.72,217.63,1.6119]
[1734203406654,20.0,217.72,217.59,8.89569575]
[1734203406847,20.0,217.72,217.6,30.0]
[1734203407562,20.0,217.72,217.59,8.89569575]
[1734203408264,23.776884,217.71,217.57,1.6119]
[1734203408454,20.0,217.68,217.57,10.50759575]
[1734203408647,20.0,217.68,217.57,1.6119]
[1734203409147,20.0,217.64,217.55,8.89569575]
[1734203409344,20.0,217.64,217.54,8.89569575]
[1734203410362,20.0,217.64,217.56,8.89569575]
[1734203411267,20.0,217.64,217.56,13.93591581]
[1734203412041,20.0,217.64,217.54,13.93591581]
[1734203412247,20.0,217.64,217.53,13.93591581]
[1734203412450,20.0,217.64,217.52,30.0]
[1734203412451,20.0,217.64,217.52,43.93591581]
[1734203412668,20.0,217.64,217.53,13.93591581]
[1734203414756,20.0,217.64,217.5,1.6119]
[1734203414958,23.776884,217.63,217.51,13.93591581]
[1734203415158,20.0,217.6,217.51,13.93591581]
[1734203416286,20.0,217.6,217.47,0.12549]
[1734203416487,20.0,217.6,217.5,13.93591581]
[1734203418868,20.0,217.59,217.5,13.93591581]
[1734203419555,20.0,217.59,217.49,13.93591581]
[1734203419870,20.0,217.59,217.46,0.12549]
[1734203419871,20.0,217.59,217.5,13.93591581]
[1734203420072,20.0,217.59,217.51,13.93591581]
[1734203420282,20.0,217.6,217.51,13.93591581]
[1734203420574,20.0,217.6,217.54,13.93591581]
[1734203420753,20.0,217.6,217.55,13.93591581]
[1734203421367,20.0,217.64,217.51,1.5956]
[1734203421579,6.9799,217.67,217.55,13.93591581]
[1734203422578,23.776884,217.66,217.55,13.93591581]
[1734203423295,20.0,217.63,217.56,13.93591581]
[1734203423966,20.0,217.63,217.55,13.93591581]
[1734203424479,20.0,217.63,217.57,13.93591581]
[1734203424668,20.0,217.63,217.56,13.93591581]
[1734203425258,20.0,217.63,217.57,13.93591581]
[1734203425457,6.9799,217.73,217.59,13.93591581]
[1734203425458,20.0,217.64,217.59,13.93591581]
[1734203426258,20.0,217.71,217.59,13.93591581]
[1734203426863,23.902374,217.7,217.58,13.93591581]
[1734203427173,20.0,217.67,217.58,13.93591581]
[1734203428660,20.0,217.67,217.57,13.93591581]
[1734203428852,20.0,217.67,217.55,13.93591581]
[1734203430382,20.0,217.67,217.56,13.93591581]
[1734203430876,20.0,217.67,217.57,13.93591581]
[1734203431051,20.0,217.67,217.58,13.93591581]
[1734203431359,20.0,217.67,217.59,8.91705625]
[1734203432173,20.0,217.67,217.6,8.91705625]
[1734203432781,20.0,217.67,217.56,0.12549]
[1734203432966,20.0,217.67,217.57,8.91705625]
[1734203433866,20.0,217.67,217.53,20.12549]
[1734203434063,20.0,217.67,217.55,0.12549]
[1734203434263,20.0,217.67,217.57,8.91705625]
[1734203435175,20.0,217.67,217.56,8.91705625]
[1734203435484,20.0,217.67,217.57,8.91705625]
[1734203435783,6.4581,217.66,217.53,20.25098]
[1734203436083,6.4581,217.66,217.53,0.12549]
[1734203436279,24.437984,217.65,217.52,8.91705625]
[1734203436872,0.12549,217.64,217.51,1.5956]
[1734203437179,20.0,217.62,217.51,1.5956]
[1734203437378,20.0,217.62,217.53,8.91705625]
[1734203438376,20.0,217.62,217.52,8.91705625]
[1734203439096,23.776884,217.61,217.5,8.91705625]
[1734203439500,23.776884,217.61,217.51,8.91705625]
[1734203440732,20.0,217.62,217.52,8.91705625]
[1734203440980,0.12549,217.64,217.49,0.68945863]
[1734203440981,20.0,217.63,217.49,0.68945863]
[1734203441282,20.0,217.63,217.53,8.91705625]
[1734203441857,20.0,217.63,217.55,8.91705625]
[1734203442075,0.6611,217.65,217.56,8.91705625]
[1734203442283,0.6611,217.65,217.59,8.91705625]
[1734203442482,6.4581,217.66,217.59,8.91705625]
[1734203442989,6.4581,217.66,217.54,22.33295011]
[1734203443207,6.4581,217.66,217.57,8.91705625]
[1734203444000,6.4581,217.66,217.58,8.91705625]
[1734203445706,20.0,217.68,217.61,8.91705625]
[1734203445875,0.12549,217.69,217.61,8.91705625]
[1734203447174,0.12549,217.69,217.56,0.68918362]
[1734203447373,0.12549,217.69,217.59,8.91705625]
[1734203447775,0.12549,217.69,217.6,8.91705625]
[1734203450185,0.12549,217.69,217.56,0.68918362]
[1734203450501,0.12549,217.69,217.59,8.91705625]
[1734203453178,0.25098,217.69,217.59,8.91705625]
[1734203454387,0.25098,217.69,217.57,8.91705625]
[1734203454606,0.12549,217.68,217.56,8.91705625]
[1734203454785,0.12549,217.68,217.54,21.6437]
[1734203454975,0.12549,217.68,217.56,8.91705625]
[1734203456288,0.12549,217.68,217.57,8.91705625]
[1734203456483,0.12549,217.68,217.58,8.91705625]
[1734203458383,0.12549,217.68,217.54,22.33299495]
[1734203458586,0.12549,217.68,217.56,8.91705625]
[1734203460019,0.12549,217.68,217.57,8.91705625]
[1734203461583,0.12549,217.61,217.49,1.6282]
[1734203461903,0.12549,217.61,217.51,38.91705625]
[1734203462104,0.12549,217.61,217.51,8.91705625]
[1734203462286,5.6611,217.7,217.57,8.91705625]
[1734203462287,0.12549,217.69,217.57,8.91705625]
[1734203462487,20.0,217.68,217.6,8.91705625]
[1734203462993,0.12549,217.67,217.6,8.91705625]
[1734203464713,0.12549,217.67,217.54,0.68922773]
[1734203464892,0.25098,217.67,217.57,8.91705625]
[1734203465086,24.027864,217.67,217.56,8.91705625]
[1734203465716,24.027864,217.67,217.51,20.0]
[1734203466013,24.027864,217.67,217.55,8.91705625]
[1734203466600,24.027864,217.67,217.56,8.91705625]
[1734203468915,24.027864,217.67,217.53,8.91705625]
[1734203469113,0.12549,217.63,217.53,8.91705625]
[1734203469317,0.12549,217.63,217.54,8.91705625]
[1734203471691,0.12549,217.63,217.49,2.31751511]
[1734203471891,0.12549,217.6,217.49,1.6282]
[1734203472095,0.12549,217.6,217.5,8.91705625]
[1734203472714,0.12549,217.58,217.46,0.68952135]
[1734203473022,24.027864,217.58,217.48,8.91705625]
[1734203473520,24.027864,217.58,217.47,8.91705625]
[1734203475198,24.027864,217.58,217.44,2.31778659]
[1734203475199,24.027864,217.58,217.44,1.6282]
[1734203475422,24.027864,217.58,217.47,8.91705625]
[1734203475903,24.027864,217.58,217.42,0.68960951]
[1734203475904,0.25098,217.56,217.42,0.68960951]
[1734203476106,0.25098,217.56,217.47,8.91705625]
[1734203476312,0.25098,217.56,217.43,30.0]
[1734203476540,24.027864,217.56,217.46,8.91705625]
[1734203478119,24.027864,217.56,217.39,0.68969773]
[1734203478301,24.027864,217.56,217.46,8.91705625]
[1734203478503,24.027864,217.56,217.41,30.0]
[1734203478710,24.027864,217.56,217.46,8.91705625]
[1734203478919,24.027864,217.56,217.41,30.68966155]
[1734203479223,24.027864,217.56,217.46,8.91705625]
[1734203481108,6.0233,217.57,217.42,0.68970518]
[1734203481309,6.0233,217.57,217.5,8.91705625]
[1734203481817,0.12549,217.56,217.5,8.91705625]
[1734203482024,0.12549,217.56,217.42,0.68970518]
[1734203482222,0.12549,217.56,217.49,8.91705625]
[1734203483102,0.12549,217.56,217.42,0.68970518]
[1734203483336,0.12549,217.56,217.47,8.91705625]
[1734203483622,0.25098,217.56,217.47,8.91705625]
[1734203484704,24.027864,217.56,217.41,20.0]
[1734203484929,24.027864,217.56,217.47,8.91705625]
[1734203485310,24.027864,217.56,217.41,20.0]
[1734203485511,24.027864,217.56,217.46,8.91705625]
[1734203485917,24.027864,217.56,217.47,8.91705625]
[1734203486117,24.027864,217.56,217.41,20.0]
[1734203486319,24.027864,217.56,217.47,8.91705625]
[1734203487820,0.25098,217.56,217.47,8.91705625]
[1734203488129,6.0233,217.57,217.51,8.91705625]
[1734203488526,6.0233,217.57,217.5,8.91705625]
[1734203488825,6.0233,217.57,217.49,8.91705625]
[1734203489228,0.12549,217.56,217.49,8.91705625]
[1734203489537,0.12549,217.56,217.41,154.7]
[1734203489538,0.12549,217.55,217.46,8.91705625]
[1734203489731,0.25098,217.55,217.46,8.91705625]
[1734203490036,0.25098,217.55,217.47,8.91705625]